fUST/lending_fUST_20260101
["ID","MTS","AMOUNT","RATE_DAILY","PERIOD"]
[400230491,1767207050381,-250.0,0.00032999,20]
[400230492,1767207050391,-250.0,0.00032999,20]
[400230493,1767207050400,-151.0,0.00032999,20]
[400230494,1767207050410,-250.0,0.00032999,20]
[400230495,1767207050419,-250.0,0.00032999,20]
[400230496,1767207050429,-250.0,0.00032999,20]
[400230497,1767207050439,-856.210546,0.00032999,31]
[400230498,1767207050448,-250.0,0.00032999,20]
[400230499,1767207050459,-250.0,0.00032999,20]
[400230500,1767207050468,-250.0,0.00032999,20]
[400230501,1767207050478,-856.210546,0.00032999,31]
[400230502,1767207050487,-250.0,0.00032999,20]
[400230503,1767207050497,-250.0,0.00032999,20]
[400230504,1767207050507,-856.210546,0.00032999,31]
[400230505,1767207050516,-250.0,0.00032999,20]
[400230506,1767207050526,-22262.88852668,0.00033,20]
[400230507,1767207050536,-153.0,0.00033,7]
[400230508,1767207050547,-1016.0,0.00033,7]
[400230509,1767207050557,-956.2,0.0003315,34]
[400230510,1767207050567,-1022.564735,0.00033165,2]
[400230511,1767207050577,-160.0,0.0003322,13]
[400230512,1767207050587,-2863.2521,0.0003322,30]
[400230513,1767207050596,-440.924061,0.0003322,31]
[400230514,1767207050606,-440.924061,0.0003322,31]
[400230515,1767207050616,-440.924061,0.0003322,31]
[400230516,1767207050626,-440.924061,0.0003322,31]
[400230517,1767207050635,-151.0,0.0003322,31]
[400230518,1767207050644,-151.0,0.0003322,31]
[400230519,1767207050655,-612.575308,0.0003322,31]
[400230520,1767207050752,-151.0,0.0003322,31]
[400230521,1767207050766,-612.575308,0.0003322,31]
[400230522,1767207050776,-612.575308,0.0003322,31]
[400230523,1767207050786,-612.575308,0.0003322,31]
[400230524,1767207050795,-151.0,0.0003322,31]
[400230525,1767207050805,-200.54705607,0.00033421,25]
[400230526,1767207050814,-1004.98248976,0.00033425,5]
[400230527,1767207050824,-256.50070885,0.00033547,2]
[400230528,1767207050833,-2000.0,0.00033609,7]
[400230529,1767207050843,-5000.0,0.00033697,15]
[400230530,1767207050853,-956.2,0.00033698,35]
[400230531,1767207050862,-250.0,0.00033699,5]
[400230532,1767207050872,-200.26076,0.000337,120]
[400230533,1767207050881,-239.6,0.00033709,6]
[400230534,1767207050894,-160.0,0.00033743,14]
[400230535,1767207050904,-295.735,0.000338,10]
[400230536,1767207050913,-295.73,0.000338,10]
[400230537,1767207050923,-1667.66,0.00033844,30]
[400230538,1767207050933,-150.0,0.00033859,2]
[400230539,1767207050943,-416.0,0.00033859,2]
[400230540,1767207050952,-416.0,0.00033859,2]
[400230541,1767207050963,-627.0,0.00033859,2]
[400230542,1767207050972,-2156.0,0.00033859,2]
[400230543,1767207050982,-1364.0,0.00033859,2]
[400230544,1767207050991,-150.0,0.00033859,2]
[400230545,1767207051001,-150.0,0.00033859,2]
[400230546,1767207051010,-150.0,0.00033859,2]
[400230547,1767207051020,-183.49170094,0.000339,120]
[400230548,1767207051029,-1430.86618739,0.000339,120]
[400230549,1767207051043,-3147.76375777,0.00033915,2]
[400230550,1767207051052,-1041.66666667,0.00034,120]
[400230551,1767207051062,-12143.98,0.000342,14]
[400230552,1767207051072,-1324.78,0.000342,30]
[400230553,1767207051082,-956.2,0.00034246,36]
[400230554,1767207051092,-160.0,0.00034266,15]
[400230555,1767207051102,-151.19,0.00034432,60]
[400230556,1767207051111,-1470.42,0.00034511,60]
[400230557,1767207051121,-200.54705607,0.00034517,27]
[400230558,1767207051131,-350.0,0.00034521,5]
[400230559,1767207051140,-151.19,0.00034532,60]
[400230560,1767207051150,-1101.55087931,0.00034578,120]
[400230561,1767207051159,-1470.42,0.00034611,60]
[400230562,1767207051169,-151.19,0.00034632,60]
[400230563,1767207051179,-151.0,0.00034637,31]
[400230564,1767207051188,-151.0,0.00034637,31]
[400230565,1767207051198,-151.0,0.00034637,31]
[400230566,1767207051208,-1915.0885778,0.00034637,2]
[400230567,1767207051217,-1470.42,0.00034711,60]
[400230568,1767207051227,-151.19,0.00034732,60]
[400230569,1767207051236,-160.0,0.00034788,16]
[400230570,1767207051246,-956.2,0.00034794,37]
[400230571,1767207051256,-156.46,0.000348,7]
[400230572,1767207051266,-1470.42,0.00034811,60]
[400230573,1767207051275,-151.21868735,0.00034832,60]
[400230574,1767207051285,-1430.86618739,0.000349,120]
[400230575,1767207051294,-1470.42,0.00034911,60]
[400230576,1767207051303,-60413.6668245,0.00035,120]
[400230577,1767207051312,-1860.91764131,0.00035,120]
[400230578,1767207051322,-151.0,0.00035,31]
[400230579,1767207051331,-151.0,0.00035,31]
[400230580,1767207051340,-151.0,0.00035,31]
[400230581,1767207051349,-151.0,0.00035,31]
[400230582,1767207051358,-151.0,0.00035,31]
[400230583,1767207051368,-151.0,0.00035,31]
[400230584,1767207051377,-151.0,0.00035,31]
[400230585,1767207051387,-151.0,0.00035,31]
[400230586,1767207051397,-151.0,0.00035,31]
[400230587,1767207051406,-151.0,0.00035,31]
[400230588,1767207051415,-151.0,0.00035,31]
[400230589,1767207051426,-151.0,0.00035,31]
[400230590,1767207051435,-151.0,0.00035,31]
[400230591,1767207051445,-151.0,0.00035,31]
[400230592,1767207051455,-153.744785,0.00035,31]
[400230593,1767207051464,-153.744785,0.00035,31]
[400230594,1767207051474,-151.0,0.00035,31]
[400230595,1767207051483,-153.744785,0.00035,31]
[400230596,1767207051493,-153.744785,0.00035,31]
[400230597,1767207051503,-206.620926,0.00035,31]
[400230598,1767207051513,-151.0,0.00035,31]
[400230599,1767207051523,-435.404982,0.00035,31]
[400230600,1767207051533,-352.845551,0.00035,31]
[400230601,1767207051543,-270.454127,0.00035,31]
[400230602,1767207051553,-435.404982,0.00035,31]
[400230603,1767207051562,-352.845551,0.00035,31]
[400230604,1767207051572,-270.454127,0.00035,31]
[400230605,1767207051582,-352.845551,0.00035,31]
[400230606,1767207051592,-435.404982,0.00035,31]
[400230607,1767207051602,-270.454127,0.00035,31]
[400230608,1767207051612,-435.404982,0.00035,31]
[400230609,1767207051622,-352.845551,0.00035,31]
[400230610,1767207051631,-270.454127,0.00035,31]
[400230611,1767207051641,-151.0,0.00035,31]
[400230612,1767207051651,-151.0,0.00035,31]
[400230613,1767207051660,-151.0,0.00035,31]
[400230614,1767207051670,-151.0,0.00035,31]
[400230615,1767207051679,-394.521351,0.00035,31]
[400230616,1767207051689,-429.596572,0.00035,31]
[400230617,1767207051698,-394.521351,0.00035,31]
[400230618,1767207051708,-429.596572,0.00035,31]
[400230619,1767207051718,-394.521351,0.00035,31]
[400230620,1767207051727,-429.596572,0.00035,31]
[400230621,1767207051736,-394.521351,0.00035,31]
[400230622,1767207051746,-429.596572,0.00035,31]
[400230623,1767207051756,-1470.42,0.00035011,60]
[400230624,1767207051765,-1470.42,0.00035111,60]
[400230625,1767207051775,-169.32246815,0.00035178,30]
[400230626,1767207051784,-1470.42,0.00035211,60]
[400230627,1767207051794,-5000.0,0.00035287,3]
[400230628,1767207051804,-1470.42,0.00035311,60]
[400230629,1767207051815,-160.0,0.00035311,17]
[400230630,1767207051825,-184.3179844,0.00035312,2]
[400230631,1767207051835,-736.53466566,0.00035312,2]
[400230632,1767207051844,-151.0,0.00035342,31]
[400230633,1767207051854,-151.0,0.00035342,31]
[400230634,1767207051864,-270.657289,0.00035342,31]
[400230635,1767207051873,-270.657289,0.00035342,31]
[400230636,1767207051883,-270.657289,0.00035342,31]
[400230637,1767207051895,-351.647028,0.00035342,31]
[400230638,1767207051904,-270.657289,0.00035342,31]
[400230639,1767207051914,-351.647028,0.00035342,31]
[400230640,1767207051923,-151.0,0.00035342,31]
[400230641,1767207051933,-351.647028,0.00035342,31]
[400230642,1767207051942,-151.0,0.00035342,31]
[400230643,1767207051951,-351.647028,0.00035342,31]
[400230644,1767207051961,-315.210295,0.00035342,31]
[400230645,1767207051970,-315.210295,0.00035342,31]
[400230646,1767207051979,-315.210295,0.00035342,31]
[400230647,1767207051988,-315.210295,0.00035342,31]
[400230648,1767207051997,-1087.238041,0.00035342,31]
[400230649,1767207052007,-1087.238041,0.00035342,31]
[400230650,1767207052016,-1087.238041,0.00035342,31]
[400230651,1767207052026,-1087.238041,0.00035342,31]
[400230652,1767207052035,-579.465896,0.00035342,31]
[400230653,1767207052044,-579.465896,0.00035342,31]
[400230654,1767207052054,-579.465896,0.00035342,31]
[400230655,1767207052063,-579.465896,0.00035342,31]
[400230656,1767207052073,-414.72566,0.00035342,31]
[400230657,1767207052083,-414.72566,0.00035342,31]
[400230658,1767207052092,-414.72566,0.00035342,31]
[400230659,1767207052101,-414.72566,0.00035342,31]
[400230660,1767207052111,-956.2,0.00035342,38]
[400230661,1767207052120,-906.127244,0.00035342,31]
[400230662,1767207052129,-906.127244,0.00035342,31]
[400230663,1767207052138,-906.127244,0.00035342,31]
[400230664,1767207052148,-151.0,0.00035342,31]
[400230665,1767207052157,-906.127244,0.00035342,31]
[400230666,1767207052167,-151.0,0.00035342,31]
[400230667,1767207052177,-151.0,0.00035342,31]
[400230668,1767207052186,-151.0,0.00035342,31]
[400230669,1767207052195,-151.743207,0.00035342,31]
[400230670,1767207052204,-151.0,0.00035342,7]
[400230671,1767207052214,-151.0,0.00035342,28]
[400230672,1767207052223,-151.0,0.00035342,7]
[400230673,1767207052232,-151.0,0.00035342,7]
[400230674,1767207052241,-151.0,0.00035342,31]
[400230675,1767207052251,-193.357014,0.00035342,31]
[400230676,1767207052260,-151.0,0.00035342,31]
[400230677,1767207052269,-193.357014,0.00035342,31]
[400230678,1767207052279,-193.357014,0.00035342,31]
[400230679,1767207052289,-193.357014,0.00035342,31]
[400230680,1767207052298,-151.0,0.00035342,31]
[400230681,1767207052308,-297.109657,0.00035342,31]
[400230682,1767207052317,-450.0,0.00035342,5]
[400230683,1767207052327,-1470.42,0.00035411,60]
[400230684,1767207052336,-367.96456977,0.00035471,15]
[400230685,1767207052346,-208.32,0.000355,2]
[400230686,1767207052355,-1470.42,0.00035511,60]
[400230687,1767207052364,-239.6,0.00035556,30]
[400230688,1767207052374,-726.0,0.00035563,11]
[400230689,1767207052383,-726.0,0.00035583,11]
[400230690,1767207052393,-800.0,0.00035584,2]
[400230691,1767207052403,-726.0,0.00035603,11]
[400230692,1767207052412,-1470.42,0.00035611,60]
[400230693,1767207052421,-200.54705607,0.00035612,28]
[400230694,1767207052430,-151.0,0.00035616,31]
[400230695,1767207052440,-154.738358,0.00035616,31]
[400230696,1767207052450,-169.32246815,0.00035644,30]
[400230697,1767207052460,-1266.6604661,0.00035663,2]
[400230698,1767207052469,-726.0,0.00035667,11]
[400230699,1767207052479,-726.0,0.00035685,11]
[400230700,1767207052488,-1470.42,0.00035711,60]
[400230701,1767207052497,-726.0,0.00035722,11]
[400230702,1767207052507,-2000.0,0.00035739,7]
[400230703,1767207052516,-800.0,0.00035781,7]
[400230704,1767207052525,-500.0,0.00035796,14]
[400230705,1767207052535,-800.0,0.00035797,7]
[400230706,1767207052544,-1680.48964912,0.00035809,2]
[400230707,1767207052553,-1470.42,0.00035811,60]
[400230708,1767207052563,-160.0,0.00035834,18]
[400230709,1767207052573,-726.0,0.00035868,11]
[400230710,1767207052583,-956.2,0.0003589,39]
[400230711,1767207052673,-3877.62234439,0.000359,15]
[400230712,1767207052684,-1430.86618739,0.000359,120]
[400230713,1767207052694,-600.0,0.00035906,2]
[400230714,1767207052703,-1680.48964912,0.00035909,2]
[400230715,1767207052712,-1470.42,0.00035911,60]
[400230716,1767207052721,-1680.48964912,0.00036009,2]
[400230717,1767207052731,-1470.42,0.00036011,60]
[400230718,1767207052740,-202.21692804,0.00036093,8]
[400230719,1767207052750,-202.21692799,0.00036093,8]
[400230720,1767207052760,-202.21692799,0.00036093,8]
[400230721,1767207052769,-202.21692799,0.00036093,8]
[400230722,1767207052778,-202.21692799,0.00036093,8]
[400230723,1767207052787,-202.21692799,0.00036093,8]
[400230724,1767207052797,-202.21692799,0.00036093,8]
[400230725,1767207052807,-202.21692799,0.00036093,8]
[400230726,1767207052816,-202.21692799,0.00036093,8]
[400230727,1767207052826,-202.21692799,0.00036093,8]
[400230728,1767207052835,-202.21692799,0.00036093,8]
[400230729,1767207052845,-202.21692799,0.00036093,8]
[400230730,1767207052854,-202.21692799,0.00036093,8]
[400230731,1767207052863,-156.46,0.000361,7]
[400230732,1767207052873,-1680.48964912,0.00036109,2]
[400230733,1767207052882,-169.32246814,0.0003611,30]
[400230734,1767207052894,-169.32246815,0.0003611,30]
[400230735,1767207052904,-1470.42,0.00036111,60]
[400230736,1767207052913,-651.10848757,0.00036164,5]
[400230737,1767207052922,-6369.13269035,0.00036181,2]
[400230738,1767207052931,-800.0,0.00036199,7]
[400230739,1767207052940,-1680.48964912,0.00036209,2]
[400230740,1767207052949,-1470.42,0.00036211,60]
[400230741,1767207052959,-600.0,0.0003628,2]
[400230742,1767207052970,-1500.625286,0.000363,24]
[400230743,1767207052979,-874.0,0.00036307,11]
[400230744,1767207052989,-1680.48964912,0.00036309,2]
[400230745,1767207052998,-1470.42,0.00036311,60]
[400230746,1767207053007,-160.0,0.00036357,19]
[400230747,1767207053017,-1680.48964912,0.00036409,2]
[400230748,1767207053027,-1470.42,0.00036411,60]
[400230749,1767207053037,-956.2,0.00036438,40]
[400230750,1767207053046,-500.0,0.0003644,30]
[400230751,1767207053056,-500.0,0.0003644,30]
[400230752,1767207053066,-500.0,0.0003644,30]
[400230753,1767207053076,-500.0,0.0003644,30]
[400230754,1767207053086,-500.0,0.0003644,30]
[400230755,1767207053096,-500.0,0.0003644,30]
[400230756,1767207053106,-500.0,0.0003644,30]
[400230757,1767207053116,-500.0,0.0003644,30]
[400230758,1767207053126,-500.0,0.0003644,30]
[400230759,1767207053136,-500.0,0.0003644,30]
[400230760,1767207053146,-500.0,0.0003644,30]
[400230761,1767207053156,-500.0,0.0003644,30]
[400230762,1767207053166,-2223.55,0.00036447,30]
[400230763,1767207053176,-155.15468496,0.000365,120]
[400230764,1767207053186,-152.24102269,0.00036501,7]
[400230765,1767207053196,-1680.48964912,0.00036509,2]
[400230766,1767207053206,-1470.42,0.00036511,60]
[400230767,1767207053215,-193.3811029,0.00036558,30]
[400230768,1767207053225,-193.3811029,0.00036558,30]
[400230769,1767207053236,-193.3811029,0.00036558,30]
[400230770,1767207053246,-599.7286954,0.00036558,30]
[400230771,1767207053255,-193.3811029,0.00036558,30]
[400230772,1767207053266,-599.7286954,0.00036558,30]
[400230773,1767207053275,-599.7286954,0.00036558,30]
[400230774,1767207053286,-193.3811029,0.00036558,30]
[400230775,1767207053295,-599.7286954,0.00036558,30]
[400230776,1767207053305,-599.7286954,0.00036558,30]
[400230777,1767207053315,-193.3811029,0.00036558,30]
[400230778,1767207053324,-599.7286954,0.00036558,30]
[400230779,1767207053334,-1199.4573908,0.00036558,30]
[400230780,1767207053343,-169.32246815,0.00036575,30]
[400230781,1767207053353,-1168.08750961,0.00036578,120]
[400230782,1767207053363,-726.0,0.00036602,11]
[400230783,1767207053372,-1680.48964912,0.00036609,2]
[400230784,1767207053382,-1470.42,0.00036611,60]
[400230785,1767207053392,-816.49131542,0.00036617,7]
[400230786,1767207053401,-726.0,0.00036623,11]
[400230787,1767207053411,-600.0,0.00036654,2]
[400230788,1767207053421,-308477.52,0.00036685,5]
[400230789,1767207053432,-7073.29,0.00036685,5]
[400230790,1767207053443,-805.861522,0.00036686,31]
[400230791,1767207053453,-805.861522,0.00036686,31]
[400230792,1767207053463,-151.0,0.00036686,31]
[400230793,1767207053473,-805.861522,0.00036686,31]
[400230794,1767207053484,-151.0,0.00036686,31]
[400230795,1767207053494,-805.861522,0.00036686,31]
[400230796,1767207053504,-151.0,0.00036686,31]
[400230797,1767207053513,-1973.671944,0.00036686,31]
[400230798,1767207053523,-184.533996,0.00036686,31]
[400230799,1767207053533,-1973.671944,0.00036686,31]
[400230800,1767207053543,-1973.671944,0.00036686,31]
[400230801,1767207053553,-1973.671944,0.00036686,31]
[400230802,1767207053563,-151.0,0.00036686,31]
[400230803,1767207053573,-227.124845,0.00036686,31]
[400230804,1767207053583,-227.124845,0.00036686,31]
[400230805,1767207053593,-227.124845,0.00036686,31]
[400230806,1767207053603,-227.124845,0.00036686,31]
[400230807,1767207053614,-1549.100689,0.00036686,31]
[400230808,1767207053624,-1549.100689,0.00036686,31]
[400230809,1767207053633,-1549.100689,0.00036686,31]
[400230810,1767207053643,-1549.100689,0.00036686,31]
[400230811,1767207053653,-230.54366,0.00036686,31]
[400230812,1767207053663,-230.54366,0.00036686,31]
[400230813,1767207053673,-230.54366,0.00036686,31]
[400230814,1767207053683,-230.54366,0.00036686,31]
[400230815,1767207053692,-151.0,0.00036686,31]
[400230816,1767207053703,-151.0,0.00036686,31]
[400230817,1767207053714,-151.0,0.00036686,31]
[400230818,1767207053724,-151.0,0.00036686,31]
[400230819,1767207053734,-856.210546,0.00036686,31]
[400230820,1767207053744,-856.210546,0.00036686,31]
[400230821,1767207053754,-856.210546,0.00036686,31]
[400230822,1767207053765,-326659.52480988,0.00036686,7]
[400230823,1767207053775,-726.0,0.00036697,11]
[400230824,1767207053785,-200.54705607,0.00036708,29]
[400230825,1767207053796,-1470.42,0.00036711,60]
[400230826,1767207053805,-9999.999999,0.000368,50]
[400230827,1767207053816,-1500.0,0.000368,24]
[400230828,1767207053825,-1470.6226316,0.00036811,60]
[400230829,1767207053836,-150.0,0.00036859,2]
[400230830,1767207053846,-416.0,0.00036859,2]
[400230831,1767207053856,-416.0,0.00036859,2]
[400230832,1767207053867,-627.0,0.00036859,2]
[400230833,1767207053877,-2156.0,0.00036859,2]
[400230834,1767207053890,-1364.0,0.00036859,2]
[400230835,1767207053899,-150.0,0.00036859,2]
[400230836,1767207053909,-150.0,0.00036859,2]
[400230837,1767207053919,-160.0,0.0003688,20]
[400230838,1767207053930,-93527.4,0.00036886,17]
[400230839,1767207053940,-151.0,0.00036886,31]
[400230840,1767207053949,-151.0,0.00036886,31]
[400230841,1767207053960,-254.893875,0.00036886,31]
[400230842,1767207053969,-151.0,0.00036886,31]
[400230843,1767207053979,-151.0,0.00036886,31]
[400230844,1767207053989,-151.0,0.00036886,31]
[400230845,1767207053999,-151.0,0.00036886,31]
[400230846,1767207054008,-151.0,0.00036886,31]
[400230847,1767207054018,-151.0,0.00036886,31]
[400230848,1767207054027,-151.0,0.00036886,31]
[400230849,1767207054036,-259.777782,0.00036886,31]
[400230850,1767207054046,-151.0,0.00036886,31]
[400230851,1767207054056,-151.0,0.00036886,31]
[400230852,1767207054066,-151.0,0.00036886,31]
[400230853,1767207054075,-151.0,0.00036886,31]
[400230854,1767207054085,-158.022812,0.00036886,31]
[400230855,1767207054094,-158.892051,0.00036886,31]
[400230856,1767207054104,-158.892051,0.00036886,31]
[400230857,1767207054114,-158.892051,0.00036886,31]
[400230858,1767207054124,-158.892051,0.00036886,31]
[400230859,1767207054134,-151.0,0.00036886,31]
[400230860,1767207054144,-151.0,0.00036886,31]
[400230861,1767207054154,-151.0,0.00036886,31]
[400230862,1767207054164,-295.093194,0.00036886,31]
[400230863,1767207054173,-151.0,0.00036886,31]
[400230864,1767207054182,-151.0,0.00036886,31]
[400230865,1767207054192,-151.0,0.00036886,31]
[400230866,1767207054202,-289.342021,0.00036886,31]
[400230867,1767207054211,-1419.163026,0.00036886,31]
[400230868,1767207054220,-151.0,0.00036886,31]
[400230869,1767207054230,-1419.163026,0.00036886,31]
[400230870,1767207054240,-257.669759,0.00036886,31]
[400230871,1767207054249,-229.240196,0.00036886,31]
[400230872,1767207054259,-1419.163026,0.00036886,31]
[400230873,1767207054269,-1419.163026,0.00036886,31]
[400230874,1767207054278,-171.736498,0.00036886,31]
[400230875,1767207054288,-171.736498,0.00036886,31]
[400230876,1767207054297,-171.736498,0.00036886,31]
[400230877,1767207054307,-171.736498,0.00036886,31]
[400230878,1767207054317,-947.358642,0.00036886,31]
[400230879,1767207054326,-947.358642,0.00036886,31]
[400230880,1767207054335,-947.358642,0.00036886,31]
[400230881,1767207054344,-947.358642,0.00036886,31]
[400230882,1767207054354,-220.61404,0.00036886,31]
[400230883,1767207054363,-435.404982,0.00036886,31]
[400230884,1767207054373,-352.845551,0.00036886,31]
[400230885,1767207054382,-270.454127,0.00036886,31]
[400230886,1767207054392,-435.404982,0.00036886,31]
[400230887,1767207054477,-352.845551,0.00036886,31]
[400230888,1767207054486,-270.454127,0.00036886,31]
[400230889,1767207054495,-352.845551,0.00036886,31]
[400230890,1767207054504,-435.404982,0.00036886,31]
[400230891,1767207054512,-270.454127,0.00036886,31]
[400230892,1767207054521,-435.404982,0.00036886,31]
[400230893,1767207054531,-352.845551,0.00036886,31]
[400230894,1767207054540,-270.454127,0.00036886,31]
[400230895,1767207054550,-151.0,0.00036886,31]
[400230896,1767207054559,-151.0,0.00036886,31]
[400230897,1767207054568,-151.0,0.00036886,31]
[400230898,1767207054578,-151.0,0.00036886,31]
[400230899,1767207054587,-394.521351,0.00036886,31]
[400230900,1767207054596,-429.596572,0.00036886,31]
[400230901,1767207054606,-394.521351,0.00036886,31]
[400230902,1767207054615,-429.596572,0.00036886,31]
[400230903,1767207054625,-394.521351,0.00036886,31]
[400230904,1767207054635,-429.596572,0.00036886,31]
[400230905,1767207054644,-394.521351,0.00036886,31]
[400230906,1767207054654,-429.596572,0.00036886,31]
[400230907,1767207054663,-906.127244,0.00036886,31]
[400230908,1767207054673,-906.127244,0.00036886,31]
[400230909,1767207054685,-906.127244,0.00036886,31]
[400230910,1767207054695,-156.003217,0.00036886,31]
[400230911,1767207054704,-906.127244,0.00036886,31]
[400230912,1767207054715,-180.038769,0.00036886,31]
[400230913,1767207054725,-151.0,0.00036886,31]
[400230914,1767207054734,-151.0,0.00036886,31]
[400230915,1767207054743,-151.0,0.00036886,7]
[400230916,1767207054752,-151.0,0.00036886,7]
[400230917,1767207054761,-151.0,0.00036886,28]
[400230918,1767207054770,-151.0,0.00036886,7]
[400230919,1767207054780,-151.0,0.00036886,31]
[400230920,1767207054789,-193.357014,0.00036886,31]
[400230921,1767207054798,-151.0,0.00036886,31]
[400230922,1767207054808,-193.357014,0.00036886,31]
[400230923,1767207054818,-193.357014,0.00036886,31]
[400230924,1767207054828,-193.357014,0.00036886,31]
[400230925,1767207054838,-151.0,0.00036886,31]
[400230926,1767207054848,-800.0,0.00036898,7]
[400230927,1767207054858,-208.32,0.000369,2]
[400230928,1767207054867,-440.924061,0.000369,31]
[400230929,1767207054877,-440.924061,0.000369,31]
[400230930,1767207054888,-440.924061,0.000369,31]
[400230931,1767207054898,-440.924061,0.000369,31]
[400230932,1767207054907,-151.0,0.000369,31]
[400230933,1767207054917,-151.0,0.000369,31]
[400230934,1767207054927,-612.575308,0.000369,31]
[400230935,1767207054936,-155.898305,0.000369,31]
[400230936,1767207054946,-612.575308,0.000369,31]
[400230937,1767207054955,-612.575308,0.000369,31]
[400230938,1767207054967,-612.575308,0.000369,31]
[400230939,1767207054977,-151.0,0.000369,31]
[400230940,1767207054986,-956.2,0.00036986,41]
[400230941,1767207054995,-151.0,0.00036988,31]
[400230942,1767207055005,-151.0,0.00036988,31]
[400230943,1767207055015,-151.0,0.00036988,31]
[400230944,1767207055024,-151.0,0.00036988,31]
[400230945,1767207055034,-151.0,0.00036988,31]
[400230946,1767207055043,-151.0,0.00036988,31]
[400230947,1767207055052,-151.0,0.00036988,31]
[400230948,1767207055061,-151.0,0.00036988,31]
[400230949,1767207055071,-151.0,0.00036988,31]
[400230950,1767207055081,-173.554,0.00036988,47]
[400230951,1767207055091,-151.0,0.00036988,31]
[400230952,1767207055101,-151.0,0.00036988,31]
[400230953,1767207055110,-194.97163,0.00036988,31]
[400230954,1767207055120,-151.0,0.00036988,31]
[400230955,1767207055132,-153.744785,0.00036988,31]
[400230956,1767207055142,-153.744785,0.00036988,31]
[400230957,1767207055156,-153.744785,0.00036988,31]
[400230958,1767207055166,-153.744785,0.00036988,31]
[400230959,1767207055175,-151.0,0.00036988,31]
[400230960,1767207055184,-151.0,0.00036988,31]
[400230961,1767207055194,-270.657289,0.00036988,31]
[400230962,1767207055203,-270.657289,0.00036988,31]
[400230963,1767207055213,-270.657289,0.00036988,31]
[400230964,1767207055223,-351.647028,0.00036988,31]
[400230965,1767207055232,-270.657289,0.00036988,31]
[400230966,1767207055243,-351.647028,0.00036988,31]
[400230967,1767207055252,-151.0,0.00036988,31]
[400230968,1767207055262,-351.647028,0.00036988,31]
[400230969,1767207055272,-151.0,0.00036988,31]
[400230970,1767207055282,-351.647028,0.00036988,31]
[400230971,1767207055292,-315.210295,0.00036988,31]
[400230972,1767207055304,-315.210295,0.00036988,31]
[400230973,1767207055322,-315.210295,0.00036988,31]
[400230974,1767207055332,-315.210295,0.00036988,31]
[400230975,1767207055342,-1087.238041,0.00036988,31]
[400230976,1767207055352,-1087.238041,0.00036988,31]
[400230977,1767207055362,-1087.238041,0.00036988,31]
[400230978,1767207055372,-1087.238041,0.00036988,31]
[400230979,1767207055382,-579.465896,0.00036988,31]
[400230980,1767207055392,-579.465896,0.00036988,31]
[400230981,1767207055402,-579.465896,0.00036988,31]
[400230982,1767207055411,-579.465896,0.00036988,31]
[400230983,1767207055421,-414.72566,0.00036988,31]
[400230984,1767207055431,-414.72566,0.00036988,31]
[400230985,1767207055440,-414.72566,0.00036988,31]
[400230986,1767207055451,-414.72566,0.00036988,31]
[400230987,1767207055461,-726.0,0.00036995,11]
[400230988,1767207055470,-187.78338598,0.00037,120]
[400230989,1767207055480,-1430.86618739,0.00037,120]
[400230990,1767207055490,-160.0,0.0003701,11]